bitfinex/quotes_BTCUSD_20250313
["timestamp","ask_amount","ask_price","bid_price","bid_amount"]
[1741830591443,0.01863788,84070.0,84066.0,0.00882774]
[1741830591644,0.01863788,84070.0,84067.0,0.237905]
[1741830592817,0.01872685,84070.0,84067.0,0.237905]
[1741830593031,0.01872685,84070.0,84069.0,0.237899]
[1741830593383,0.01872685,84070.0,84069.0,0.238238]
[1741830594611,0.01872685,84070.0,84069.0,0.255132]
[1741830595199,0.01872685,84070.0,84069.0,0.243238]
[1741830595960,0.01872685,84070.0,84069.0,0.247238]
[1741830597833,0.01872685,84070.0,84069.0,0.009339]
[1741830598562,0.03062085,84070.0,84069.0,0.009339]
[1741830598892,0.11150783,84070.0,84069.0,0.009339]
[1741830600683,0.09961383,84070.0,84069.0,0.009339]
[1741830600883,0.09812685,84070.0,84069.0,0.009339]
[1741830602077,0.0996138,84070.0,84069.0,0.009339]
[1741830603020,0.1115078,84070.0,84069.0,0.009339]
[1741830605815,0.0996138,84070.0,84069.0,0.009339]
[1741830606011,0.09812685,84070.0,84069.0,0.009339]
[1741830606972,0.09829635,84070.0,84069.0,0.009339]
[1741830607531,0.01889635,84070.0,84069.0,0.021233]
[1741830608134,0.00025847,84070.0,84069.0,0.15808667]
[1741830608339,0.00025847,84070.0,84069.0,0.157313]
[1741830608557,0.00025847,84070.0,84069.0,0.233213]
[1741830611375,0.00025847,84070.0,84069.0,0.35315519]
[1741830611576,0.00025847,84070.0,84069.0,0.39875519]
[1741830613217,0.00025847,84070.0,84069.0,0.32285519]
[1741830613423,0.00025847,84070.0,84069.0,0.65005511]
[1741830613841,0.00025847,84070.0,84069.0,0.60445511]
[1741830614030,0.00025847,84070.0,84069.0,0.48451292]
[1741830616638,0.00025847,84070.0,84069.0,0.61291292]
[1741830616842,0.00025847,84070.0,84069.0,0.73285511]
[1741830622224,0.00025847,84070.0,84069.0,0.72385511]
[1741830622659,0.00025847,84070.0,84069.0,0.72885511]
[1741830622862,0.00025847,84070.0,84069.0,0.73285511]
[1741830623022,0.00025847,84070.0,84069.0,0.72385511]
[1741830623430,0.00025847,84070.0,84069.0,0.72885511]
[1741830624641,0.00025847,84070.0,84069.0,2.22885511]
[1741830625592,0.00025847,84070.0,84069.0,2.23485511]
[1741830626214,0.01863554,84080.0,84079.0,0.011893]
[1741830626439,0.0001695,84083.0,84082.0,0.249756]
[1741830626610,0.0001695,84083.0,84082.0,0.36969819]
[1741830627891,0.0001695,84083.0,84082.0,0.83293811]
[1741830629279,0.0001695,84083.0,84082.0,0.83593811]
[1741830629880,0.0001695,84083.0,84082.0,0.83993811]
[1741830630257,0.0001695,84083.0,84082.0,0.86328563]
[1741830641166,0.0001695,84083.0,84082.0,2.36328563]
[1741830643922,0.0001695,84083.0,84082.0,2.36324563]
[1741830644136,0.0001695,84083.0,84082.0,0.86324563]
[1741830644694,0.0001695,84083.0,84082.0,2.36324563]
[1741830645100,0.0001695,84083.0,84082.0,2.49004563]
[1741830645927,0.0001695,84083.0,84082.0,2.48604563]
[1741830646132,0.0001695,84083.0,84082.0,2.48304563]
[1741830646468,0.0001695,84083.0,84082.0,2.49604563]
[1741830647626,0.0001695,84083.0,84082.0,0.99604563]
[1741830647828,0.0001695,84083.0,84082.0,0.98904563]
[1741830648045,0.0001695,84083.0,84082.0,2.49604563]
[1741830648429,0.0001695,84083.0,84082.0,2.48904563]
[1741830648629,0.0001695,84083.0,84082.0,2.48304563]
[1741830648830,0.0001695,84083.0,84082.0,2.49004563]
[1741830649469,0.0001695,84083.0,84082.0,2.49704563]
[1741830651328,0.0001695,84083.0,84082.0,0.99704563]
[1741830654575,0.0001695,84083.0,84082.0,2.49704563]
[1741830654786,0.0001695,84097.0,84096.0,0.249714]
[1741830654911,0.00025849,84097.0,84096.0,0.83281611]
[1741830656123,0.00025849,84097.0,84096.0,0.83681611]
[1741830657285,0.00025849,84097.0,84096.0,0.84181611]
[1741830659242,0.00025849,84097.0,84096.0,1.59685611]
[1741830659994,0.00025849,84097.0,84096.0,1.60789424]
[1741830660391,0.01171549,84104.0,84103.0,0.01189]
[1741830660596,0.0001694,84107.0,84106.0,0.011889]
[1741830660796,0.0001694,84107.0,84106.0,0.01266126]
[1741830661683,0.0776,84123.0,84108.0,0.011889]
[1741830661858,0.0776,84123.0,84108.0,0.13260314]
[1741830662473,0.0776,84123.0,84108.0,0.14496024]
[1741830662671,0.0776,84123.0,84113.0,0.011888]
[1741830662877,0.0776,84123.0,84113.0,0.83353706]
[1741830663073,0.0776,84123.0,84113.0,0.83276511]
[1741830663528,0.09622636,84123.0,84113.0,0.83276511]
[1741830663890,0.0776,84123.0,84113.0,0.83276511]
[1741830664471,0.049,84127.0,84113.0,0.83276511]
[1741830665119,0.049,84127.0,84113.0,0.83776511]
[1741830665600,0.049,84127.0,84113.0,0.83876511]
[1741830666055,0.049,84127.0,84113.0,0.83276511]
[1741830666412,0.049,84127.0,84113.0,0.83776511]
[1741830666787,0.06762619,84127.0,84113.0,0.83776511]
[1741830667482,0.06762619,84127.0,84113.0,0.84476511]
[1741830667640,0.24943117,84200.0,84138.0,0.07191]
[1741830667641,5e-07,84168.0,84138.0,0.07191]
[1741830667844,0.0001695,84199.0,84178.0,0.24947]
[1741830667845,0.01228005,84191.0,84178.0,0.24947]
[1741830668072,0.09158292,84179.0,84178.0,0.38539]
[1741830668395,0.09158292,84179.0,84178.0,0.27325866]
[1741830668571,0.09199893,84179.0,84178.0,0.27325866]
[1741830668775,0.09199893,84179.0,84164.0,0.13616]
[1741830668776,0.237608,84173.0,84164.0,0.13616]
[1741830668999,0.17279893,84179.0,84175.0,0.01188]
[1741830669158,0.09199893,84179.0,84178.0,0.24947]
[1741830670231,0.00041601,84179.0,84178.0,0.36941219]
[1741830670794,0.00031662,84179.0,84178.0,0.37341219]
[1741830671201,0.00031662,84179.0,84178.0,0.36941219]
[1741830671605,0.00031662,84179.0,84178.0,0.37941219]
[1741830672072,0.00031662,84179.0,84178.0,0.37641219]
[1741830672367,0.00031662,84179.0,84178.0,0.38141219]
[1741830672766,0.00031662,84179.0,84178.0,0.37641219]
[1741830673010,0.00031662,84179.0,84178.0,0.71061211]
[1741830673213,0.0008,84189.0,84178.0,1.47361211]
[1741830673417,0.01375825,84221.0,84198.0,0.249411]
[1741830673625,0.01375825,84221.0,84219.0,0.249349]
[1741830673829,0.00051244,84240.0,84239.0,0.249289]
[1741830674002,0.00051244,84240.0,84239.0,0.50607119]
[1741830674240,8e-05,84267.0,84249.0,0.24926]
[1741830674646,0.00102488,84250.0,84249.0,1.5]
[1741830674849,0.00102488,84250.0,84249.0,1.61994219]
[1741830675055,0.00102488,84250.0,84249.0,1.65209872]
[1741830675286,0.00102487,84253.0,84249.0,1.65209872]
[1741830675489,0.00102487,84253.0,84250.0,0.00118664]
[1741830675691,0.00102487,84253.0,84252.0,0.02397856]
[1741830675894,0.00102487,84253.0,84252.0,0.1451074]
[1741830676348,0.00102487,84253.0,84252.0,0.00118676]
[1741830676555,0.25027687,84253.0,84249.0,0.007]
[1741830676762,0.011869,84250.0,84249.0,0.007]
[1741830677004,0.011869,84250.0,84235.0,0.011871]
[1741830677005,0.249281,84242.0,84219.0,0.75464]
[1741830677218,0.237411,84242.0,84230.0,0.25152256]
[1741830677430,0.249281,84242.0,84234.0,0.00905267]
[1741830677629,0.249281,84242.0,84234.0,0.01023969]
[1741830678166,0.00102487,84253.0,84247.0,0.011869]
[1741830678368,0.00102487,84253.0,84252.0,0.249252]
[1741830678569,0.00102487,84253.0,84252.0,0.37319419]
[1741830678974,0.0001694,84264.0,84263.0,0.249219]
[1741830679199,0.00726567,84275.0,84274.0,0.249187]
[1741830679421,4.079e-05,84290.0,84285.0,0.011864]
[1741830679630,0.00613386,84300.0,84299.0,0.011862]
[1741830679835,0.00613386,84300.0,84299.0,0.13299008]
[1741830680054,0.02127183,84301.0,84300.0,0.249109]
[1741830680270,0.27038083,84301.0,84300.0,0.11994219]
[1741830680479,0.011863,84292.0,84291.0,0.32719992]
[1741830680714,0.011864,84288.0,84286.0,0.538]
[1741830680918,0.011863,84292.0,84287.0,0.11994219]
[1741830681123,0.011863,84292.0,84279.0,0.011865]
[1741830681124,0.011865,84278.0,84277.0,0.3286]
[1741830681329,0.00041542,84301.0,84263.0,0.01599017]
[1741830681330,0.249216,84264.0,84263.0,0.01599017]
[1741830681531,0.011867,84264.0,84263.0,0.01599017]
[1741830681738,0.011867,84262.0,84261.0,0.3286]
[1741830682151,0.237383,84252.0,84237.0,0.1422]
[1741830682360,0.011869,84253.0,84237.0,0.1422]
[1741830682361,0.011869,84250.0,84242.0,0.0357438]
[1741830682571,0.011869,84252.0,84246.0,0.01267485]
[1741830682786,0.249257,84250.0,84237.0,0.1422]
[1741830682998,0.249257,84250.0,84221.0,0.3286]
[1741830682999,0.249257,84250.0,84231.0,0.011872]
[1741830683597,0.249257,84250.0,84231.0,0.01305905]
[1741830683821,0.249257,84250.0,84236.0,0.011871]
[1741830684022,0.249257,84250.0,84234.0,0.237432]
[1741830684233,0.14284,84262.0,84251.0,0.011869]
[1741830684433,0.011868,84260.0,84251.0,0.011869]
[1741830684635,0.011867,84261.0,84254.0,0.011868]
[1741830684837,0.14284,84262.0,84256.0,0.011868]
[1741830685056,0.011867,84264.0,84256.0,0.011868]
[1741830685239,0.011867,84261.0,84254.0,0.011868]
[1741830685385,0.011867,84261.0,84255.0,0.011868]
[1741830685788,0.011868,84259.0,84254.0,0.011868]
[1741830685987,0.011868,84256.0,84249.0,0.2495974]
[1741830686213,0.237388,84250.0,84249.0,0.0003384]
[1741830686418,0.249257,84250.0,84249.0,0.0003384]
[1741830686640,0.011869,84253.0,84249.0,0.0003384]
[1741830686818,0.0723,84275.0,84249.0,0.0003384]
[1741830686819,0.249207,84267.0,84257.0,0.237369]
[1741830687040,0.0473,84275.0,84249.0,0.0003384]
[1741830687041,0.0473,84275.0,84269.0,0.011866]
[1741830687240,0.011866,84272.0,84255.0,0.237374]
[1741830687444,0.237354,84262.0,84255.0,0.011868]
[1741830687646,0.237363,84259.0,84252.0,0.011869]
[1741830687891,0.011868,84259.0,84253.0,0.011869]
[1741830688194,0.011868,84257.0,84249.0,0.0162074]
[1741830688402,0.249257,84250.0,84249.0,0.0043384]
[1741830689014,0.331157,84250.0,84249.0,0.0043384]
[1741830689597,0.331157,84250.0,84249.0,0.0003384]
[1741830689799,0.474597,84250.0,84249.0,0.0003384]
[1741830690387,0.49319792,84250.0,84249.0,0.0003384]
[1741830691402,0.49519792,84250.0,84249.0,0.0003384]
[1741830692470,0.35175792,84250.0,84249.0,0.0003384]
[1741830692668,0.249257,84250.0,84249.0,0.0003384]
[1741830692894,0.011868,84260.0,84254.0,0.011868]
[1741830693090,0.011868,84260.0,84251.0,0.011869]
[1741830693246,0.0001692,84253.0,84250.0,0.237388]
[1741830693667,0.0001692,84253.0,84252.0,0.011869]
[1741830695204,0.011867,84266.0,84259.0,0.011868]
[1741830695413,0.0070362,84267.0,84259.0,0.011868]
[1741830695414,0.011866,84268.0,84262.0,0.249221]
[1741830695606,0.011866,84269.0,84262.0,0.249221]
[1741830695821,0.2559297,84270.0,84260.0,0.23736]
[1741830695822,0.0185957,84270.0,84269.0,0.237335]
[1741830696026,0.011864,84282.0,84275.0,0.237317]
[1741830696239,0.01859426,84281.0,84276.0,0.011865]
[1741830696435,0.01859426,84281.0,84278.0,0.249173]
[1741830696674,0.00041542,84291.0,84290.0,0.011863]
[1741830697066,0.00041542,84291.0,84290.0,0.13299151]
[1741830697820,0.00041542,84291.0,84290.0,0.46159151]
[1741830698024,0.00041542,84291.0,84290.0,0.46240519]
[1741830699178,0.00041542,84291.0,84290.0,1.14380519]
[1741830699179,4.2e-07,84291.0,84290.0,1.14380519]
[1741830699389,4.2e-07,84291.0,84290.0,1.16680519]
[1741830699592,0.0008,84309.0,84308.0,0.249086]
[1741830699862,0.00092454,84309.0,84308.0,0.84110819]
[1741830700269,0.0151797,84315.0,84314.0,0.249068]
[1741830700491,0.0151797,84315.0,84314.0,0.36901019]
[1741830701229,0.00572467,84335.0,84318.0,0.249056]
[1741830701453,0.011857,84333.0,84318.0,0.36899819]
[1741830701652,0.011857,84333.0,84318.0,1.86899819]
[1741830701855,0.00572467,84335.0,84318.0,1.86899819]
[1741830702055,0.011858,84330.0,84318.0,1.86899819]
[1741830702384,0.011858,84325.0,84315.0,0.249065]
[1741830702607,0.011859,84323.0,84314.0,0.3286]
[1741830702796,0.011858,84328.0,84317.0,0.01186]
[1741830703294,0.011858,84325.0,84314.0,0.3286]
[1741830703531,0.237183,84324.0,84315.0,0.237205]
[1741830703885,0.011859,84323.0,84315.0,0.237205]
[1741830704211,0.011858,84325.0,84317.0,0.237197]
[1741830704365,0.011858,84327.0,84317.0,0.249057]
[1741830704571,0.011858,84331.0,84318.0,0.011859]
[1741830704772,0.011858,84328.0,84318.0,0.011859]
[1741830705043,0.0051691,84319.0,84317.0,0.249057]
[1741830705216,0.0051691,84319.0,84318.0,0.011859]
[1741830707050,0.0051691,84319.0,84318.0,0.018859]
[1741830707564,0.0051691,84319.0,84318.0,0.011859]
[1741830707798,0.0051691,84319.0,84318.0,0.018859]
[1741830710198,0.0051691,84319.0,84318.0,0.13998704]
[1741830710561,0.0051691,84319.0,84318.0,0.018859]
[1741830710836,0.0051691,84319.0,84318.0,0.007]
[1741830711060,0.0170281,84319.0,84318.0,0.007]
[1741830711871,0.03561206,84319.0,84318.0,0.007]
[1741830712070,0.249094,84305.0,84304.0,0.01085467]
[1741830712277,0.011861,84305.0,84304.0,0.01085467]
[1741830712482,0.011861,84304.0,84296.0,0.237257]
[1741830712732,0.011862,84301.0,84296.0,0.00012454]
[1741830713062,0.011862,84297.0,84296.0,0.00012454]
[1741830713959,0.011862,84297.0,84296.0,0.00512454]
[1741830714151,0.011862,84299.0,84296.0,0.00512454]
[1741830714368,0.011862,84297.0,84296.0,0.00012454]
[1741830714570,0.011862,84297.0,84296.0,0.00612454]
[1741830714855,0.237231,84306.0,84296.0,0.01798654]
[1741830715033,0.2491,84303.0,84296.0,0.00612454]
[1741830715235,0.011862,84299.0,84296.0,0.00612454]
[1741830715401,0.01858727,84302.0,84296.0,0.00612454]
[1741830715602,0.03044927,84302.0,84296.0,0.00612454]
[1741830716003,0.03044927,84302.0,84296.0,0.00012454]
[1741830716203,0.03044927,84302.0,84296.0,0.00412454]
[1741830716406,0.01858727,84302.0,84296.0,0.00412454]
[1741830716914,0.011862,84297.0,84296.0,0.00412454]
[1741830717141,0.011862,84297.0,84296.0,0.00446374]
[1741830717542,0.01858727,84302.0,84298.0,0.237251]
[1741830717747,0.01858727,84302.0,84298.0,0.011862]
[1741830717901,0.01858727,84302.0,84299.0,0.23725]
[1741830718104,0.25582927,84302.0,84296.0,0.00246374]
[1741830718442,0.011862,84297.0,84296.0,0.00246374]
[1741830719045,0.249113,84299.0,84296.0,0.00246374]
[1741830719298,0.01858727,84302.0,84296.0,0.00046374]
[1741830719652,0.01858727,84302.0,84297.0,0.011862]
[1741830720019,0.01858727,84302.0,84296.0,0.24272074]
[1741830720226,0.01858727,84302.0,84301.0,0.011862]
[1741830720545,0.01,84320.0,84315.0,0.237205]
[1741830720756,0.01858578,84318.0,84317.0,0.237198]
[1741830720976,0.01858578,84318.0,84317.0,0.01186]
[1741830721475,0.01858578,84318.0,84317.0,0.15862]
[1741830721672,0.01,84320.0,84318.0,0.249056]
[1741830724550,0.0061691,84319.0,84318.0,0.70459819]
[1741830724994,0.0061691,84319.0,84318.0,0.85195819]
[1741830725312,0.0061691,84319.0,84318.0,2.35195819]
[1741830725512,0.01,84320.0,84319.0,0.011859]
[1741830725718,0.01,84320.0,84319.0,0.13298688]
[1741830726354,0.01,84320.0,84319.0,1.63298688]
[1741830726594,0.00572467,84335.0,84334.0,0.011857]
[1741830726732,0.00572467,84335.0,84334.0,0.249009]
[1741830727664,0.00572467,84335.0,84334.0,0.248009]
[1741830727865,0.00584912,84335.0,84334.0,0.248009]
[1741830728385,0.00684912,84335.0,84334.0,0.255009]
[1741830728605,0.00684912,84335.0,84334.0,0.017857]
[1741830729373,0.25585512,84335.0,84334.0,0.007]
[1741830730483,0.28085512,84335.0,84334.0,0.007]
[1741830730918,0.28085512,84335.0,84318.0,0.0003392]
[1741830730919,0.249053,84319.0,84318.0,0.0003392]
[1741830731328,0.011859,84321.0,84318.0,0.0003392]
[1741830731439,0.237158,84332.0,84324.0,0.237179]
[1741830731649,0.00584912,84335.0,84325.0,0.011858]
[1741830731650,0.011857,84333.0,84325.0,0.011858]
[1741830731944,0.00584912,84335.0,84334.0,0.237152]
[1741830732150,0.00584912,84335.0,84334.0,0.249009]
[1741830732596,0.00584912,84335.0,84334.0,1.86895119]
[1741830733615,0.00584912,84335.0,84334.0,1.5]
[1741830733806,0.00584912,84335.0,84334.0,1.511857]
[1741830734012,0.00584912,84335.0,84328.0,0.011858]
[1741830734182,0.011858,84331.0,84325.0,0.011858]
[1741830734409,0.011858,84328.0,84320.0,0.14772]
[1741830734602,0.00584912,84335.0,84332.0,0.237156]
[1741830734958,0.00684912,84335.0,84329.0,0.011858]
[1741830735118,0.011858,84329.0,84324.0,0.14768]
[1741830735324,0.00584912,84335.0,84332.0,0.237155]
[1741830735524,0.00584912,84335.0,84334.0,0.011857]
[1741830735725,0.00584912,84335.0,84331.0,0.011858]
[1741830736164,0.00584912,84335.0,84333.0,0.011857]
[1741830736329,0.00584912,84335.0,84332.0,0.249014]
[1741830736330,0.00584912,84335.0,84332.0,0.011857]
[1741830736527,0.00584912,84335.0,84332.0,0.237155]
[1741830736746,0.00584912,84335.0,84328.0,0.237167]
[1741830736955,0.00584912,84335.0,84317.0,0.237197]
[1741830736956,0.011858,84326.0,84317.0,0.237197]
[1741830737149,0.011857,84332.0,84320.0,0.011859]
[1741830737600,0.011858,84325.0,84324.0,0.007]
[1741830737798,0.001,84329.0,84324.0,0.007]
[1741830738004,0.001,84329.0,84324.0,0.244179]
[1741830738321,0.03043843,84330.0,84324.0,0.237179]
[1741830738538,0.01858043,84330.0,84323.0,0.011859]
[1741830738872,0.01858043,84330.0,84320.0,0.003]
[1741830738873,0.23718,84325.0,84320.0,0.003]
[1741830739021,0.011858,84328.0,84320.0,0.237191]
[1741830739223,0.011858,84327.0,84320.0,0.24905]
[1741830739409,0.011858,84327.0,84324.0,0.004]
[1741830739771,0.25574443,84330.0,84324.0,0.004]
[1741830739923,0.011858,84329.0,84324.0,0.004]
[1741830740352,0.249027,84328.0,84324.0,0.004]
[1741830740553,0.011858,84327.0,84324.0,0.004]
[1741830740754,0.011858,84327.0,84320.0,0.011859]
[1741830741122,0.249033,84326.0,84320.0,0.003]
[1741830741752,0.249033,84326.0,84319.0,0.249053]
[1741830742125,0.011858,84329.0,84322.0,0.011859]
[1741830742328,0.01858043,84330.0,84325.0,0.237175]
[1741830742529,0.01858043,84330.0,84326.0,0.237174]
[1741830742758,0.011858,84329.0,84321.0,0.249047]
[1741830742920,0.249027,84328.0,84321.0,0.249047]
[1741830743120,0.011858,84329.0,84324.0,0.237179]
[1741830743323,0.01858043,84330.0,84329.0,0.011858]
[1741830744347,0.0001696,84334.0,84333.0,0.249012]
[1741830744574,0.0001691,84338.0,84337.0,0.249]
[1741830744778,0.0001691,84338.0,84337.0,1.12202219]
[1741830746030,0.0001691,84338.0,84337.0,1.26870219]
[1741830746228,0.0001691,84338.0,84337.0,1.26770219]
[1741830747087,0.0001691,84338.0,84337.0,0.761914]
[1741830747303,0.0001691,84338.0,84337.0,1.145577]
[1741830747475,0.0001691,84338.0,84337.0,0.908434]
[1741830747677,0.0001691,84338.0,84337.0,0.8996]
[1741830748413,0.0001691,84338.0,84337.0,0.911457]
[1741830748522,0.0001691,84338.0,84337.0,0.9066]
[1741830748523,0.0011691,84338.0,84337.0,0.9066]
[1741830749133,0.0011691,84338.0,84321.0,0.02420169]
[1741830749134,0.011858,84330.0,84324.0,0.23718]
[1741830749316,0.011858,84331.0,84324.0,0.24916345]
[1741830749493,0.249013,84333.0,84324.0,0.24916345]
[1741830749843,0.011857,84332.0,84324.0,0.24916345]
[1741830750286,0.011858,84326.0,84324.0,0.00012445]
[1741830750486,0.011858,84327.0,84324.0,0.00012445]
[1741830750659,0.03043833,84326.0,84324.0,0.00012445]
[1741830751109,0.01858033,84326.0,84324.0,0.23730245]
[1741830751319,0.01858033,84326.0,84325.0,0.011858]
[1741830751521,0.01858033,84326.0,84324.0,0.00012445]
[1741830751915,0.01858033,84326.0,84325.0,0.011858]
[1741830752214,0.01958033,84326.0,84325.0,0.011858]
[1741830753985,0.01958033,84326.0,84324.0,0.00712445]
[1741830754189,0.01958033,84326.0,84325.0,1.5]
[1741830754397,0.03143833,84326.0,84325.0,1.5]
[1741830754569,0.03043833,84326.0,84325.0,1.5]
[1741830754950,0.03143833,84326.0,84325.0,1.507]
[1741830755536,0.03143833,84326.0,84325.0,0.007]
[1741830756174,0.03143833,84326.0,84325.0,0.0073392]
[1741830757208,0.01958033,84326.0,84325.0,0.0073392]
[1741830758048,0.03143833,84326.0,84325.0,0.0073392]
[1741830758453,0.03143833,84326.0,84325.0,0.5073392]
[1741830759284,0.01958033,84326.0,84325.0,0.5073392]
[1741830760760,0.03143833,84326.0,84325.0,0.5073392]
[1741830760960,0.012858,84326.0,84325.0,0.5073392]
[1741830762324,0.001,84326.0,84325.0,0.5073392]
[1741830763776,0.012858,84326.0,84325.0,0.5073392]
[1741830764543,0.088558,84326.0,84325.0,0.5073392]
[1741830765187,0.113558,84326.0,84325.0,0.5073392]
[1741830765567,0.58501734,84326.0,84325.0,0.5073392]
[1741830766201,0.58501734,84326.0,84324.0,6.5e-07]
[1741830766202,0.274035,84325.0,84324.0,6.5e-07]
[1741830766406,0.65779217,84325.0,84324.0,6.5e-07]
[1741830766609,0.011862,84297.0,84296.0,0.0003392]
[1741830766760,0.249118,84297.0,84296.0,0.00046374]
[1741830768042,0.26770699,84297.0,84296.0,0.00046374]
[1741830768639,0.26770699,84297.0,84296.0,0.00446374]
[1741830769063,0.01858899,84297.0,84296.0,0.00446374]
[1741830769289,0.01858899,84297.0,84296.0,0.01632574]
[1741830769562,0.01858899,84297.0,84296.0,0.01232574]
[1741830769706,0.249074,84312.0,84302.0,0.011862]
[1741830769908,0.249083,84309.0,84300.0,0.237247]
[1741830770122,0.01858735,84306.0,84300.0,0.237247]
[1741830770808,0.01858735,84306.0,84302.0,0.23724]
[1741830771423,0.01858735,84306.0,84300.0,0.249109]
[1741830771424,0.01858735,84306.0,84303.0,0.237237]
[1741830771758,0.01858735,84306.0,84303.0,0.249098]
[1741830771960,0.237188,84322.0,84311.0,0.01186]
[1741830772173,0.011859,84321.0,84311.0,0.01186]
[1741830772373,0.237191,84320.0,84313.0,0.23721]
[1741830772576,0.1442,84341.0,84303.0,0.001]
[1741830772777,0.011859,84324.0,84316.0,0.237202]
[1741830772952,0.011858,84327.0,84319.0,0.011859]
[1741830773148,0.011858,84328.0,84320.0,0.237189]
[1741830773496,0.249027,84328.0,84319.0,0.237192]
[1741830773692,0.237179,84325.0,84317.0,0.237198]
[1741830773902,0.011858,84327.0,84319.0,0.237192]
[1741830774213,0.249018,84331.0,84322.0,0.011859]
[1741830774426,0.237167,84329.0,84321.0,0.237187]
[1741830774622,0.237167,84329.0,84319.0,0.011859]
[1741830774623,0.011857,84333.0,84325.0,0.011858]
[1741830774821,0.011857,84333.0,84327.0,0.237171]
[1741830775124,0.011857,84334.0,84327.0,0.237171]
[1741830775407,0.011858,84330.0,84323.0,0.237182]
[1741830775544,0.011858,84329.0,84323.0,0.237182]
[1741830775745,0.011858,84326.0,84317.0,0.237197]
[1741830775949,0.011859,84318.0,84311.0,0.237215]
[1741830776148,0.249053,84319.0,84313.0,0.23721]
[1741830776368,0.2372,84317.0,84310.0,0.237218]
[1741830776576,0.237211,84313.0,84306.0,0.237229]
[1741830776777,0.01186,84310.0,84305.0,0.14384]
[1741830777007,0.237234,84305.0,84302.0,0.75324]
[1741830777311,0.237234,84305.0,84296.0,0.0122012]
[1741830777312,0.249118,84297.0,84296.0,0.0003392]
[1741830777607,0.011862,84301.0,84296.0,0.0003392]
[1741830777808,0.011862,84298.0,84296.0,0.0003392]
[1741830778403,0.011862,84298.0,84296.0,0.00046374]
[1741830779006,0.249118,84297.0,84296.0,0.00046374]
[1741830779599,0.249118,84297.0,84296.0,0.00446374]
[1741830780114,0.249118,84297.0,84296.0,0.00046374]
[1741830780699,0.68161734,84297.0,84296.0,0.00046374]
[1741830780898,0.73101734,84297.0,84296.0,0.00046374]
[1741830781589,0.73201734,84297.0,84296.0,0.00546374]
[1741830781963,0.75701734,84297.0,84296.0,7.4e-07]
[1741830782164,0.75701734,84297.0,84240.0,0.33139124]
[1741830782165,0.011868,84259.0,84253.0,0.237378]
[1741830782394,0.011868,84255.0,84249.0,0.7535784]
[1741830782609,0.011868,84254.0,84249.0,0.7535784]
[1741830782821,0.011869,84252.0,84249.0,0.7535784]
[1741830783027,0.237363,84260.0,84249.0,0.0003384]
[1741830783234,0.237377,84254.0,84249.0,0.0003384]
[1741830783414,0.237384,84252.0,84249.0,0.00075382]
[1741830783612,0.011869,84250.0,84249.0,0.00075382]
[1741830785310,0.011869,84250.0,84249.0,0.00275382]
[1741830785687,0.155389,84250.0,84249.0,0.00075382]
[1741830785889,0.011869,84250.0,84249.0,0.00075382]
[1741830786091,0.004,84250.0,84249.0,0.01262282]
[1741830786414,0.004,84250.0,84249.0,0.00075382]
[1741830786594,0.249236,84258.0,84249.0,0.23814282]
[1741830786969,0.006,84250.0,84249.0,0.00075382]
[1741830788022,0.017869,84250.0,84249.0,0.00075382]
[1741830788189,0.011869,84250.0,84249.0,0.00075382]
[1741830788590,0.011868,84255.0,84249.0,0.00075382]
[1741830788814,0.011869,84253.0,84249.0,0.00075382]
[1741830789013,0.011869,84252.0,84249.0,0.00075382]
[1741830789414,0.011869,84250.0,84249.0,0.00075382]
[1741830789710,0.249251,84253.0,84249.0,0.00075382]
[1741830790120,0.011869,84250.0,84249.0,0.00075382]
[1741830791161,0.011869,84252.0,84249.0,0.00075382]
[1741830791584,0.011869,84250.0,84249.0,0.00075382]
[1741830792869,0.012869,84250.0,84249.0,0.00075382]
[1741830793510,0.011869,84250.0,84249.0,0.00075382]
[1741830795537,0.011869,84252.0,84249.0,0.00075382]
[1741830795739,0.011869,84250.0,84249.0,0.00075382]
[1741830797856,0.179629,84250.0,84249.0,0.00075382]
[1741830798061,0.6076294,84250.0,84249.0,0.00075382]
[1741830798236,0.63422834,84250.0,84249.0,0.00075382]
[1741830798467,0.66206095,84250.0,84249.0,0.00075382]
[1741830798859,0.63422834,84250.0,84249.0,0.00075382]
[1741830799161,0.83464072,84250.0,84249.0,8.2e-07]
[1741830799298,0.65922834,84250.0,84249.0,8.2e-07]
[1741830799860,0.66622834,84250.0,84249.0,8.2e-07]
[1741830800435,0.47346834,84250.0,84249.0,8.2e-07]
[1741830800652,0.007,84250.0,84249.0,8.2e-07]
[1741830800844,0.018869,84250.0,84249.0,8.2e-07]
[1741830801046,0.011869,84251.0,84249.0,8.2e-07]
[1741830801224,0.249257,84250.0,84249.0,8.2e-07]
[1741830801427,0.281257,84250.0,84249.0,8.2e-07]
[1741830802070,0.29285881,84250.0,84249.0,8.2e-07]
[1741830802585,0.274257,84250.0,84249.0,8.2e-07]
[1741830803128,0.279257,84250.0,84249.0,8.2e-07]
[1741830803523,0.254257,84250.0,84249.0,8.2e-07]
[1741830804255,0.254257,84250.0,84249.0,0.00034002]
[1741830804704,0.016869,84250.0,84249.0,0.00034002]
[1741830805646,0.011869,84250.0,84249.0,0.00034002]
[1741830805818,0.016869,84250.0,84249.0,0.00034002]
[1741830806406,0.011869,84250.0,84249.0,0.00034002]
[1741830807936,0.016869,84250.0,84249.0,0.00034002]
[1741830808505,0.005,84250.0,84249.0,0.00034002]
[1741830809638,0.249252,84252.0,84249.0,0.00034002]
[1741830809855,0.011869,84251.0,84249.0,0.00034002]
[1741830810067,0.249257,84250.0,84249.0,0.00034002]
[1741830810496,0.249256,84251.0,84249.0,0.00034002]
[1741830810892,0.011869,84252.0,84249.0,0.00134002]
[1741830811402,0.011869,84252.0,84249.0,0.00034002]
[1741830811600,0.011869,84250.0,84249.0,0.00034002]
[1741830812372,0.237385,84251.0,84249.0,0.00034002]
[1741830812373,0.011869,84251.0,84249.0,0.00034002]
[1741830812785,0.249257,84250.0,84249.0,0.00034002]
[1741830813025,0.011869,84250.0,84249.0,0.00034002]
[1741830813467,0.237334,84270.0,84263.0,0.237349]
[1741830813615,0.011865,84275.0,84263.0,0.011867]
[1741830813818,0.011865,84275.0,84262.0,0.24922]
[1741830813819,0.01859832,84267.0,84262.0,0.237353]
[1741830814017,0.01859832,84267.0,84262.0,0.24922]